Workbook

Sheet 1
A1: مسلسل | B1: الوزن بالكيلو | C1: الصنف | D1: الاسم | E1: السعر | F1: =SUM($F$2:$F$1000) -> 0 | G1: =SUM($G$2:$G$1000) -> 0 | H1: =SUM($H$2:$H$1000) -> 0 | I1: التاريخ
A2: =IF(C2="","",SUBTOTAL(3,$C$2:C2)) ->  | F2: =IFERROR(B2*E2,"") -> 0 | H2: =IFERROR(F2-G2,"") -> 0 | I2: =IF(D2="","",TODAY()) -> 
A3: =IF(C3="","",SUBTOTAL(3,$C$2:C3)) ->  | F3: =IFERROR(B3*E3,"") -> 0 | H3: =IFERROR(F3-G3,"") -> 0 | I3: =IF(D3="","",TODAY()) -> 
A4: =IF(C4="","",SUBTOTAL(3,$C$2:C4)) ->  | F4: 0 | H4: 0
A5: =IF(C5="","",SUBTOTAL(3,$C$2:C5)) ->  | F5: 0 | H5: 0
A6: =IF(C6="","",SUBTOTAL(3,$C$2:C6)) ->  | F6: 0 | H6: 0
A7: =IF(C7="","",SUBTOTAL(3,$C$2:C7)) ->  | F7: 0 | H7: 0
A8: =IF(C8="","",SUBTOTAL(3,$C$2:C8)) ->  | F8: 0 | H8: 0
A9: =IF(C9="","",SUBTOTAL(3,$C$2:C9)) ->  | F9: 0 | H9: 0
A10: =IF(C10="","",SUBTOTAL(3,$C$2:C10)) ->  | F10: 0 | H10: 0
A11: =IF(C11="","",SUBTOTAL(3,$C$2:C11)) ->  | F11: 0 | H11: 0
A12: =IF(C12="","",SUBTOTAL(3,$C$2:C12)) ->  | F12: 0 | H12: 0
A13: =IF(C13="","",SUBTOTAL(3,$C$2:C13)) ->  | F13: 0 | H13: 0
A14: =IF(C14="","",SUBTOTAL(3,$C$2:C14)) ->  | F14: 0 | H14: 0
A15: =IF(C15="","",SUBTOTAL(3,$C$2:C15)) ->  | F15: 0 | H15: 0
A16: =IF(C16="","",SUBTOTAL(3,$C$2:C16)) ->  | F16: 0 | H16: 0
A17: =IF(C17="","",SUBTOTAL(3,$C$2:C17)) ->  | F17: 0 | H17: 0
A18: =IF(C18="","",SUBTOTAL(3,$C$2:C18)) ->  | F18: 0 | H18: 0
A19: =IF(C19="","",SUBTOTAL(3,$C$2:C19)) ->  | F19: 0 | H19: 0
A20: =IF(C20="","",SUBTOTAL(3,$C$2:C20)) ->  | F20: 0 | H20: 0
A21: =IF(C21="","",SUBTOTAL(3,$C$2:C21)) ->  | F21: 0 | H21: 0
A22: =IF(C22="","",SUBTOTAL(3,$C$2:C22)) ->  | F22: 0 | H22: 0
A23: =IF(C23="","",SUBTOTAL(3,$C$2:C23)) ->  | F23: 0 | H23: 0
A24: =IF(C24="","",SUBTOTAL(3,$C$2:C24)) ->  | F24: 0 | H24: 0
A25: =IF(C25="","",SUBTOTAL(3,$C$2:C25)) ->  | F25: 0 | H25: 0
A26: =IF(C26="","",SUBTOTAL(3,$C$2:C26)) ->  | F26: 0 | H26: 0
A27: =IF(C27="","",SUBTOTAL(3,$C$2:C27)) ->  | F27: 0 | H27: 0
A28: =IF(C28="","",SUBTOTAL(3,$C$2:C28)) ->  | F28: 0 | H28: 0
A29: =IF(C29="","",SUBTOTAL(3,$C$2:C29)) ->  | F29: 0 | H29: 0
A30: =IF(C30="","",SUBTOTAL(3,$C$2:C30)) ->  | F30: 0 | H30: 0
A31: =IF(C31="","",SUBTOTAL(3,$C$2:C31)) ->  | F31: 0 | H31: 0
A32: =IF(C32="","",SUBTOTAL(3,$C$2:C32)) ->  | F32: 0 | H32: 0
A33: =IF(C33="","",SUBTOTAL(3,$C$2:C33)) ->  | F33: 0 | H33: 0
A34: =IF(C34="","",SUBTOTAL(3,$C$2:C34)) ->  | F34: 0 | H34: 0
A35: =IF(C35="","",SUBTOTAL(3,$C$2:C35)) ->  | F35: 0 | H35: 0
A36: =IF(C36="","",SUBTOTAL(3,$C$2:C36)) ->  | F36: 0 | H36: 0
A37: =IF(C37="","",SUBTOTAL(3,$C$2:C37)) ->  | F37: 0 | H37: 0
A38: =IF(C38="","",SUBTOTAL(3,$C$2:C38)) ->  | F38: 0 | H38: 0
A39: =IF(C39="","",SUBTOTAL(3,$C$2:C39)) ->  | F39: 0 | H39: 0
A40: =IF(C40="","",SUBTOTAL(3,$C$2:C40)) ->  | F40: 0 | H40: 0
A41: =IF(C41="","",SUBTOTAL(3,$C$2:C41)) ->  | F41: 0 | H41: 0
A42: =IF(C42="","",SUBTOTAL(3,$C$2:C42)) ->  | F42: 0 | H42: 0
A43: =IF(C43="","",SUBTOTAL(3,$C$2:C43)) ->  | F43: 0 | H43: 0
A44: =IF(C44="","",SUBTOTAL(3,$C$2:C44)) ->  | F44: 0 | H44: 0
A45: =IF(C45="","",SUBTOTAL(3,$C$2:C45)) ->  | F45: 0 | H45: 0
A46: =IF(C46="","",SUBTOTAL(3,$C$2:C46)) ->  | F46: 0 | H46: 0
A47: =IF(C47="","",SUBTOTAL(3,$C$2:C47)) ->  | F47: 0 | H47: 0
A48: =IF(C48="","",SUBTOTAL(3,$C$2:C48)) ->  | F48: 0 | H48: 0
A49: =IF(C49="","",SUBTOTAL(3,$C$2:C49)) ->  | F49: 0 | H49: 0
A50: =IF(C50="","",SUBTOTAL(3,$C$2:C50)) ->  | F50: 0 | H50: 0
A51: =IF(C51="","",SUBTOTAL(3,$C$2:C51)) ->  | F51: 0 | H51: 0
A52: =IF(C52="","",SUBTOTAL(3,$C$2:C52)) ->  | F52: 0 | H52: 0
A53: =IF(C53="","",SUBTOTAL(3,$C$2:C53)) ->  | F53: 0 | H53: 0
A54: =IF(C54="","",SUBTOTAL(3,$C$2:C54)) ->  | F54: 0 | H54: 0
A55: =IF(C55="","",SUBTOTAL(3,$C$2:C55)) ->  | F55: 0 | H55: 0
A56: =IF(C56="","",SUBTOTAL(3,$C$2:C56)) ->  | F56: 0 | H56: 0
A57: =IF(C57="","",SUBTOTAL(3,$C$2:C57)) ->  | F57: 0 | H57: 0
A58: =IF(C58="","",SUBTOTAL(3,$C$2:C58)) ->  | F58: 0 | H58: 0
A59: =IF(C59="","",SUBTOTAL(3,$C$2:C59)) ->  | F59: 0 | H59: 0
A60: =IF(C60="","",SUBTOTAL(3,$C$2:C60)) ->  | F60: 0 | H60: 0
A61: =IF(C61="","",SUBTOTAL(3,$C$2:C61)) ->  | F61: 0 | H61: 0
A62: =IF(C62="","",SUBTOTAL(3,$C$2:C62)) ->  | F62: 0 | H62: 0
A63: =IF(C63="","",SUBTOTAL(3,$C$2:C63)) ->  | F63: 0 | H63: 0
A64: =IF(C64="","",SUBTOTAL(3,$C$2:C64)) ->  | F64: 0 | H64: 0
A65: =IF(C65="","",SUBTOTAL(3,$C$2:C65)) ->  | F65: 0 | H65: 0
A66: =IF(C66="","",SUBTOTAL(3,$C$2:C66)) ->  | F66: 0 | H66: 0
A67: =IF(C67="","",SUBTOTAL(3,$C$2:C67)) ->  | F67: =IFERROR(B67*E67,"") -> 0 | H67: =IFERROR(F67-G67,"") -> 0 | I67: =IF(D67="","",TODAY()) -> 
A68: =IF(C68="","",SUBTOTAL(3,$C$2:C68)) ->  | F68: 0 | H68: 0
A69: =IF(C69="","",SUBTOTAL(3,$C$2:C69)) ->  | F69: 0 | H69: 0
A70: =IF(C70="","",SUBTOTAL(3,$C$2:C70)) ->  | F70: 0 | H70: 0
A71: =IF(C71="","",SUBTOTAL(3,$C$2:C71)) ->  | F71: 0 | H71: 0
A72: =IF(C72="","",SUBTOTAL(3,$C$2:C72)) ->  | F72: 0 | H72: 0
A73: =IF(C73="","",SUBTOTAL(3,$C$2:C73)) ->  | F73: 0 | H73: 0
A74: =IF(C74="","",SUBTOTAL(3,$C$2:C74)) ->  | F74: 0 | H74: 0
A75: =IF(C75="","",SUBTOTAL(3,$C$2:C75)) ->  | F75: 0 | H75: 0
A76: =IF(C76="","",SUBTOTAL(3,$C$2:C76)) ->  | F76: 0 | H76: 0
A77: =IF(C77="","",SUBTOTAL(3,$C$2:C77)) ->  | F77: 0 | H77: 0
A78: =IF(C78="","",SUBTOTAL(3,$C$2:C78)) ->  | F78: 0 | H78: 0
A79: =IF(C79="","",SUBTOTAL(3,$C$2:C79)) ->  | F79: 0 | H79: 0
A80: =IF(C80="","",SUBTOTAL(3,$C$2:C80)) ->  | F80: 0 | H80: 0
A81: =IF(C81="","",SUBTOTAL(3,$C$2:C81)) ->  | F81: 0 | H81: 0
A82: =IF(C82="","",SUBTOTAL(3,$C$2:C82)) ->  | F82: 0 | H82: 0
A83: =IF(C83="","",SUBTOTAL(3,$C$2:C83)) ->  | F83: 0 | H83: 0
A84: =IF(C84="","",SUBTOTAL(3,$C$2:C84)) ->  | F84: 0 | H84: 0
A85: =IF(C85="","",SUBTOTAL(3,$C$2:C85)) ->  | F85: 0 | H85: 0
A86: =IF(C86="","",SUBTOTAL(3,$C$2:C86)) ->  | F86: 0 | H86: 0
A87: =IF(C87="","",SUBTOTAL(3,$C$2:C87)) ->  | F87: 0 | H87: 0
A88: =IF(C88="","",SUBTOTAL(3,$C$2:C88)) ->  | F88: 0 | H88: 0
A89: =IF(C89="","",SUBTOTAL(3,$C$2:C89)) ->  | F89: 0 | H89: 0
A90: =IF(C90="","",SUBTOTAL(3,$C$2:C90)) ->  | F90: 0 | H90: 0
A91: =IF(C91="","",SUBTOTAL(3,$C$2:C91)) ->  | F91: 0 | H91: 0
A92: =IF(C92="","",SUBTOTAL(3,$C$2:C92)) ->  | F92: 0 | H92: 0
A93: =IF(C93="","",SUBTOTAL(3,$C$2:C93)) ->  | F93: 0 | H93: 0
A94: =IF(C94="","",SUBTOTAL(3,$C$2:C94)) ->  | F94: 0 | H94: 0
A95: =IF(C95="","",SUBTOTAL(3,$C$2:C95)) ->  | F95: 0 | H95: 0
A96: =IF(C96="","",SUBTOTAL(3,$C$2:C96)) ->  | F96: 0 | H96: 0
A97: =IF(C97="","",SUBTOTAL(3,$C$2:C97)) ->  | F97: 0 | H97: 0
A98: =IF(C98="","",SUBTOTAL(3,$C$2:C98)) ->  | F98: 0 | H98: 0
A99: =IF(C99="","",SUBTOTAL(3,$C$2:C99)) ->  | F99: 0 | H99: 0
A100: =IF(C100="","",SUBTOTAL(3,$C$2:C100)) ->  | F100: 0 | H100: 0
A101: =IF(C101="","",SUBTOTAL(3,$C$2:C101)) ->  | F101: 0 | H101: 0

Sheet دشيشة
A1: مسلسل | B1: الوزن بالكيلو | C1: الصنف | D1: الاسم | E1: السعر | F1: =SUM($F$2:$F$999) -> 90 | G1: =SUM($G$2:$G$999) -> 0 | H1: =SUM($H$2:$H$999) -> 90 | I1: التاريخ
A2: 3 | B2: 20 | C2: دشيشة | D2: محمد | E2: 4.5 | F2: 90 | G2: 0 | H2: 90 | I2: 2018-09-28

Sheet بادى ناعم
A1: مسلسل | B1: الوزن بالكيلو | C1: الصنف | D1: الاسم | E1: السعر | F1: =SUM($F$2:$F$996) -> 225 | G1: =SUM($G$2:$G$996) -> 0 | H1: =SUM($H$2:$H$996) -> 225 | I1: التاريخ
A2: 6 | B2: 30 | C2: بادى ناعم | D2: شكرى | E2: 7.5 | F2: 225 | G2: 0 | H2: 225 | I2: 2018-09-28

Sheet بادى خشن
A1: مسلسل | B1: الوزن بالكيلو | C1: الصنف | D1: الاسم | E1: السعر | F1: =SUM($F$2:$F$999) -> 175 | G1: =SUM($G$2:$G$999) -> 0 | H1: =SUM($H$2:$H$999) -> 175 | I1: التاريخ
A2: 4 | B2: 25 | C2: بادى خشن | D2: محمد | E2: 7 | F2: 175 | G2: 0 | H2: 175 | I2: 2018-09-28

Sheet ردة
A1: مسلسل | B1: الوزن بالكيلو | C1: الصنف | D1: الاسم | E1: السعر | F1: =SUM($F$2:$F$999) -> 85.5 | G1: =SUM($G$2:$G$999) -> 85.5 | H1: =SUM($H$2:$H$999) -> 0 | I1: التاريخ
A2: 9 | B2: 19 | C2: ردة | D2: ياسر | E2: 4.5 | F2: 85.5 | G2: 85.5 | H2: 0 | I2: 2018-09-28

Sheet تسمين
A1: مسلسل | B1: الوزن بالكيلو | C1: الصنف | D1: الاسم | E1: السعر | F1: =SUM($F$2:$F$998) -> 533 | G1: =SUM($G$2:$G$998) -> 425 | H1: =SUM($H$2:$H$998) -> 108 | I1: التاريخ
A2: 5 | B2: 50 | C2: تسمين | D2: شكرى | E2: 6.5 | F2: 325 | G2: 325 | H2: 0 | I2: 2018-09-28
A3: 8 | B3: 32 | C3: تسمين | D3: احمد | E3: 6.5 | F3: 1900-07-26 | G3: 100 | H3: 108 | I3: 2018-09-28

Sheet بلدى
A1: مسلسل | B1: الوزن بالكيلو | C1: الصنف | D1: الاسم | E1: السعر | F1: =SUM($F$2:$F$999) -> 150 | G1: =SUM($G$2:$G$999) -> 100 | H1: =SUM($H$2:$H$999) -> 50 | I1: التاريخ
A2: 11 | B2: 60 | C2: بلدى | D2: ياسر | E2: 2.5 | F2: 150 | G2: 100 | H2: 50 | I2: 2018-09-28

Sheet ساسو
A1: مسلسل | B1: الوزن بالكيلو | C1: الصنف | D1: الاسم | E1: السعر | F1: =SUM($F$2:$F$1000) -> 0 | G1: =SUM($G$2:$G$1000) -> 0 | H1: =SUM($H$2:$H$1000) -> 0 | I1: التاريخ

Sheet دواء
A1: مسلسل | B1: الوزن بالكيلو | C1: الصنف | D1: الاسم | E1: السعر | F1: =SUM($F$2:$F$1000) -> 200 | G1: =SUM($G$2:$G$1000) -> 200 | H1: =SUM($H$2:$H$1000) -> 0 | I1: التاريخ
A2: 1 | B2: 10 | C2: دواء | D2: شش | E2: 5 | F2: 50 | G2: 50 | H2: 0 | I2: 2018-09-28
A3: 2 | B3: 15 | C3: دواء | D3: على | E3: 10 | F3: 150 | G3: 150 | H3: 0 | I3: 2018-09-28

Sheet مولر
A1: مسلسل | B1: الوزن بالكيلو | C1: الصنف | D1: الاسم | E1: السعر | F1: =SUM($F$2:$F$1000) -> 900 | G1: =SUM($G$2:$G$1000) -> 500 | H1: =SUM($H$2:$H$1000) -> 400 | I1: التاريخ
A2: 10 | B2: 50 | C2: مولر | D2: ياسر | E2: 18 | F2: 900 | G2: 500 | H2: 400 | I2: 2018-09-28

Sheet موسكوفى
A1: مسلسل | B1: الوزن بالكيلو | C1: الصنف | D1: الاسم | E1: السعر | F1: =SUM($F$2:$F$995) -> 405 | G1: =SUM($G$2:$G$995) -> 200 | H1: =SUM($H$2:$H$995) -> 205 | I1: التاريخ
A2: 7 | B2: 27 | C2: موسكوفى | D2: احمد | E2: 15 | F2: 405 | G2: 200 | H2: 205 | I2: 2018-09-28

Sheet عميل رقم 11
A1: مسلسل | B1: الوزن بالكيلو | C1: الصنف | D1: الاسم | E1: السعر | F1: =SUM($F$2:$F$1000) -> 0 | G1: =SUM($G$2:$G$1000) -> 0 | H1: =SUM($H$2:$H$1000) -> 0 | I1: التاريخ

Sheet عميل رقم 12
A1: مسلسل | B1: الوزن بالكيلو | C1: الصنف | D1: الاسم | E1: السعر | F1: =SUM($F$2:$F$1000) -> 0 | G1: =SUM($G$2:$G$1000) -> 0 | H1: =SUM($H$2:$H$1000) -> 0 | I1: التاريخ

Sheet عميل رقم 13
A1: مسلسل | B1: الوزن بالكيلو | C1: الصنف | D1: الاسم | E1: السعر | F1: =SUM($F$2:$F$1000) -> 0 | G1: =SUM($G$2:$G$1000) -> 0 | H1: =SUM($H$2:$H$1000) -> 0 | I1: التاريخ

Sheet عميل رقم 14
A1: مسلسل | B1: الوزن بالكيلو | C1: الصنف | D1: الاسم | E1: السعر | F1: =SUM($F$2:$F$1000) -> 0 | G1: =SUM($G$2:$G$1000) -> 0 | H1: =SUM($H$2:$H$1000) -> 0 | I1: التاريخ

Sheet عميل رقم 15
A1: مسلسل | B1: الوزن بالكيلو | C1: الصنف | D1: الاسم | E1: السعر | F1: =SUM($F$2:$F$1000) -> 0 | G1: =SUM($G$2:$G$1000) -> 0 | H1: =SUM($H$2:$H$1000) -> 0 | I1: التاريخ

Sheet عميل رقم 16
A1: مسلسل | B1: الوزن بالكيلو | C1: الصنف | D1: الاسم | E1: السعر | F1: =SUM($F$2:$F$1000) -> 0 | G1: =SUM($G$2:$G$1000) -> 0 | H1: =SUM($H$2:$H$1000) -> 0 | I1: التاريخ

Sheet عميل رقم 17
A1: مسلسل | B1: الوزن بالكيلو | C1: الصنف | D1: الاسم | E1: السعر | F1: =SUM($F$2:$F$1000) -> 0 | G1: =SUM($G$2:$G$1000) -> 0 | H1: =SUM($H$2:$H$1000) -> 0 | I1: التاريخ

Sheet عميل رقم 18
A1: مسلسل | B1: الوزن بالكيلو | C1: الصنف | D1: الاسم | E1: السعر | F1: =SUM($F$2:$F$1000) -> 0 | G1: =SUM($G$2:$G$1000) -> 0 | H1: =SUM($H$2:$H$1000) -> 0 | I1: التاريخ

Sheet عميل رقم 19
A1: مسلسل | B1: الوزن بالكيلو | C1: الصنف | D1: الاسم | E1: السعر | F1: =SUM($F$2:$F$1000) -> 0 | G1: =SUM($G$2:$G$1000) -> 0 | H1: =SUM($H$2:$H$1000) -> 0 | I1: التاريخ

Sheet عميل رقم 20
A1: مسلسل | B1: الوزن بالكيلو | C1: الصنف | D1: الاسم | E1: السعر | F1: =SUM($F$2:$F$1000) -> 0 | G1: =SUM($G$2:$G$1000) -> 0 | H1: =SUM($H$2:$H$1000) -> 0 | I1: التاريخ

Sheet Setting (hidden)
A1: اسماء الأصناف | B1: سعر الكيلو | E1: أسماء العملاء
A2: بلدى | B2: 2.5 | E2: عميل رقم 1
A3: ساسو | B3: 3 | E3: عميل رقم 2
A4: دقى | B4: 3.5 | E4: عميل رقم 3
A5: فيومى | B5: 4 | E5: عميل رقم 4
A6: دشيشة | B6: 4.5 | E6: عميل رقم 5
A7: ردة | B7: 4.5 | E7: عميل رقم 6
A8: علف بط | B8: 5 | E8: عميل رقم 7
A9: بياض | B9: 5 | E9: عميل رقم 8
A10: تسمين | B10: 6.5 | E10: عميل رقم 9
A11: بادى نامى خشن | B11: 7 | E11: عميل رقم 10
A12: بادى نامى ناعم | B12: 7 | E12: عميل رقم 11
A13: نامى خشن | B13: 7 | E13: عميل رقم 12
A14: بادى ناعم | B14: 7.5 | E14: عميل رقم 13
A15: مولر | B15: 15 | E15: عميل رقم 14
A16: موسكوفى | B16: 18 | E16: عميل رقم 15
A17: رومى | B17: 30 | E17: عميل رقم 16
E18: عميل رقم 17
E19: عميل رقم 18
E20: عميل رقم 19
E21: عميل رقم 20
